bitfinex/quotes_ETHUSD_20250424
["timestamp","ask_amount","ask_price","bid_price","bid_amount"]
[1745472775720,6.46998202,1770.5,1770.1,5.64924233]
[1745472776544,12.11840725,1770.5,1770.1,5.64924233]
[1745472776754,6.46998202,1770.5,1770.1,5.64924233]
[1745472777047,5.64846458,1770.4,1770.1,5.64924233]
[1745472777219,5.6484835,1770.4,1770.0,10.89555975]
[1745472777549,5.6484835,1770.4,1770.1,5.64939234]
[1745472777938,6.78665538,1770.5,1770.1,5.64939234]
[1745472778727,6.47002126,1770.5,1770.1,5.64939234]
[1745472778913,12.11842065,1770.5,1770.1,5.64939234]
[1745472779114,6.47002126,1770.5,1770.1,5.64939234]
[1745472779350,6.47002126,1770.5,1770.1,7.30391824]
[1745472779854,6.47002126,1770.5,1770.1,1.6545259]
[1745472780051,5.64853625,1770.4,1770.1,1.6545259]
[1745472781269,5.6490792,1770.2,1769.9,0.7688]
[1745472781435,5.64952811,1770.1,1769.7,0.8244]
[1745472781635,5.64952133,1770.1,1769.7,9.47489909]
[1745472781833,6.47157198,1770.2,1769.8,5.65034651]
[1745472782033,0.8223,1770.2,1769.8,7.23663617]
[1745472782248,6.47141326,1770.2,1769.8,12.88681838]
[1745472782546,5.64859993,1770.4,1769.8,12.88681838]
[1745472782547,5.64880991,1770.3,1770.0,0.7509]
[1745472782914,0.31718363,1770.2,1770.0,0.7509]
[1745472783358,5.9662732,1770.2,1770.0,0.7509]
[1745472783560,5.9662732,1770.2,1769.9,0.73932856]
[1745472783763,6.41866009,1770.3,1769.8,0.7509]
[1745472783943,6.21417578,1770.2,1769.8,6.40122387]
[1745472784147,5.64929479,1770.2,1769.8,12.05133554]
[1745472784658,6.4188481,1770.3,1769.9,5.65000031]
[1745472784821,5.64909212,1770.2,1769.8,12.05122194]
[1745472785264,5.64909212,1770.2,1769.8,6.40104437]
[1745472785459,5.64909212,1770.2,1769.8,7.98013592]
[1745472785627,5.64909212,1770.2,1769.8,13.63027725]
[1745472785827,5.64909212,1770.2,1769.8,7.98013288]
[1745472786466,5.64909212,1770.2,1769.8,6.40104133]
[1745472787356,5.64909212,1770.2,1769.8,0.7509]
[1745472787669,5.64950611,1770.1,1769.8,0.7509]
[1745472788441,5.64909212,1770.2,1769.8,6.40121389]
[1745472789576,0.7699,1770.3,1769.8,6.40105031]
[1745472789731,10.49462161,1770.4,1770.0,5.64967996]
[1745472789937,0.31706545,1770.3,1770.1,6.40019017]
[1745472790137,0.31706545,1770.3,1770.1,7.13951873]
[1745472790637,0.31706545,1770.4,1770.1,7.13951873]
[1745472791583,0.31706545,1770.4,1770.1,6.40019017]
[1745472791771,6.41820767,1770.5,1770.1,6.40019017]
[1745472793399,0.31705081,1770.4,1770.1,6.40019017]
[1745472793559,0.31705081,1770.4,1770.1,7.60517718]
[1745472793760,6.41820767,1770.5,1770.1,7.60517718]
[1745472793999,5.6481253,1770.5,1770.1,8.34442503]
[1745472794199,0.31704799,1770.4,1770.1,8.34442503]
[1745472794487,0.31704799,1770.4,1770.2,6.48339338]
[1745472795294,0.31704799,1770.5,1770.2,6.48339338]
[1745472796074,16.90990312,1770.6,1770.2,6.48339338]
[1745472796273,11.26180943,1770.6,1770.2,6.48339338]
[1745472797184,5.64814283,1770.5,1770.2,0.8344425]
[1745472798001,11.26189358,1770.6,1770.2,6.48347144]
[1745472798295,16.909978,1770.6,1770.3,0.64834714]
[1745472798607,0.31700079,1770.5,1770.1,0.7509]
[1745472798897,0.31700079,1770.5,1769.9,1.37943359]
[1745472798898,5.64920641,1770.2,1769.9,0.8069]
[1745472799400,6.45087466,1770.3,1769.9,6.45692357]
[1745472799563,0.31700079,1770.2,1769.9,6.45692357]
[1745472799764,0.31700079,1770.2,1769.9,7.66762893]
[1745472800709,6.45087466,1770.3,1769.9,7.66762893]
[1745472800869,0.8019,1770.3,1769.9,7.66762893]
[1745472801072,6.45084107,1770.3,1769.9,7.66762893]
[1745472803607,5.64921815,1770.2,1769.9,2.01760536]
[1745472803981,6.45088558,1770.3,1769.9,2.01760536]
[1745472804185,6.45088558,1770.3,1769.9,7.66763408]
[1745472804608,12.09995759,1770.3,1769.9,7.66763408]
[1745472804814,6.45088558,1770.3,1769.9,7.66763408]
[1745472805801,12.09992522,1770.3,1769.9,7.66763408]
[1745472805998,6.45088558,1770.3,1769.9,7.66763408]
[1745472806180,6.45088558,1770.3,1769.9,8.40696264]
[1745472806380,5.64898558,1770.3,1769.9,8.40696264]
[1745472807718,5.64898558,1770.3,1769.9,14.05679565]
[1745472808215,5.64898558,1770.3,1769.9,8.40676693]
[1745472808395,5.64894899,1770.3,1769.9,8.40683392]
[1745472811308,5.64894899,1770.3,1769.9,2.75693392]
[1745472811513,6.41570963,1770.4,1769.9,1.54622856]
[1745472811698,5.64895749,1770.3,1769.9,7.19625321]
[1745472812312,5.64895749,1770.3,1769.9,7.19602438]
[1745472813031,6.41573002,1770.4,1770.0,5.64968084]
[1745472813918,5.64884993,1770.3,1769.9,7.19602438]
[1745472814146,1.408673,1770.4,1769.9,1.54622856]
[1745472814354,5.64897576,1770.3,1769.9,7.19625386]
[1745472815349,5.6492894,1770.2,1769.9,0.8069]
[1745472815722,5.6492894,1770.2,1769.8,8.65032915]
[1745472816159,5.64897023,1770.3,1769.8,8.65013181]
[1745472816513,5.64911674,1770.2,1769.8,8.65013181]
[1745472816713,5.64911674,1770.2,1769.9,1.64131318]
[1745472817351,5.64897023,1770.3,1769.9,7.29128515]
[1745472817565,6.41571148,1770.4,1770.0,5.64960704]
[1745472817742,5.64861148,1770.4,1770.1,0.7763]
[1745472817916,5.64861148,1770.4,1770.1,6.42568732]
[1745472818117,5.64799588,1770.6,1770.2,5.64907133]
[1745472818311,5.64799588,1770.6,1770.3,0.7763]
[1745472818745,0.31706472,1770.5,1770.3,0.7763]
[1745472819628,5.64799588,1770.6,1770.3,0.7763]
[1745472820050,3.80469423,1770.5,1770.3,0.7763]
[1745472820240,5.57306324,1770.5,1770.0,3.7763]
[1745472820442,5.64858908,1770.4,1770.0,9.25900108]
[1745472824068,6.4713992,1770.5,1770.1,5.64935038]
[1745472824769,0.31701709,1770.4,1770.1,5.64935038]
[1745472824958,0.31701709,1770.4,1770.1,5.64927507]
[1745472825130,0.31701709,1770.4,1770.2,0.56492751]
[1745472825454,0.31701709,1770.4,1770.0,3.6093]
[1745472825655,6.47141256,1770.5,1770.1,5.6493909]
[1745472826225,6.47141256,1770.5,1770.0,6.25876686]
[1745472826468,5.64851652,1770.4,1770.0,11.90827108]
[1745472826672,6.47136976,1770.5,1770.1,5.64939146]
[1745472828071,0.31705806,1770.4,1770.1,5.64939146]
[1745472828370,6.47136976,1770.5,1770.1,6.84001684]
[1745472828569,5.64826976,1770.5,1770.1,6.84001684]
[1745472829886,5.64826976,1770.5,1770.1,12.48921354]
[1745472830397,5.64791066,1770.6,1770.2,6.4526741]
[1745472830906,0.31706573,1770.5,1770.2,7.85568438]
[1745472831314,0.31706573,1770.5,1770.2,7.85564903]
[1745472831911,5.64791066,1770.6,1770.2,7.85564903]
[1745472832082,10.49165453,1770.7,1770.3,6.3878527]
[1745472832278,10.49165453,1770.7,1770.4,0.8036]
[1745472832833,0.31696952,1770.6,1770.4,0.8036]
[1745472833335,0.31696952,1770.6,1770.5,6.38745055]
[1745472833640,3.80469423,1770.8,1770.5,6.38745055]
[1745472834304,3.80469423,1770.8,1770.5,6.38726474]
[1745472834509,3.80469423,1770.8,1770.6,6.45138371]
[1745472835139,4.12145117,1770.9,1770.6,6.45138371]
[1745472835290,4.12145117,1770.9,1770.6,0.8036]
[1745472835724,9.76830568,1770.9,1770.6,0.8036]
[1745472836427,3.80469423,1770.9,1770.6,0.8036]
[1745472836632,9.45157574,1770.9,1770.6,0.8036]
[1745472837144,3.80469423,1770.9,1770.6,7.7352547]
[1745472838248,3.80469423,1770.9,1770.7,5.64746793]
[1745472838431,3.80469423,1770.9,1770.6,7.73507404]
[1745472839645,5.64653063,1771.0,1770.6,7.73507404]
[1745472839847,5.64653063,1771.0,1770.6,6.4511924]
[1745472840006,5.64691491,1770.9,1770.6,0.8036]
[1745472840506,6.42022067,1771.0,1770.6,0.8036]
[1745472841003,6.42022067,1771.0,1770.6,6.45137601]
[1745472841208,6.73654874,1771.0,1770.6,6.45137601]
[1745472841625,0.31632807,1771.0,1770.8,0.8036]
[1745472842004,10.48722258,1771.1,1770.8,0.8036]
[1745472842325,10.48723677,1771.1,1770.8,0.8036]
[1745472842646,5.64657255,1771.0,1770.7,0.7974]
[1745472842819,10.48742009,1771.1,1770.7,0.7974]
[1745472843348,16.13387888,1771.1,1770.7,0.7974]
[1745472843532,10.48742009,1771.1,1770.7,0.7974]
[1745472844745,5.646913,1770.9,1770.7,0.7974]
[1745472844947,5.646913,1770.9,1770.6,2.08125892]
[1745472845250,5.9628939,1771.0,1770.6,2.08125892]
[1745472845464,5.9628939,1771.0,1770.6,7.72887718]
[1745472846249,5.64672346,1771.0,1770.6,7.72887718]
[1745472847340,5.64672346,1771.0,1770.6,7.72884504]
[1745472847540,5.64748404,1770.7,1770.4,0.7974]
[1745472847757,11.29477709,1770.8,1770.4,0.7974]
[1745472847992,5.64735849,1770.8,1770.5,3.0]
[1745472848694,6.46084816,1770.9,1770.4,0.7974]
[1745472848845,5.64717232,1770.8,1770.5,5.64801302]
[1745472849280,6.46084816,1770.9,1770.5,5.64801302]
[1745472849780,6.46084816,1770.9,1770.4,7.46421312]
[1745472850278,6.77721635,1770.9,1770.5,5.6480989]
[1745472852143,1.13026819,1770.9,1770.5,11.29602592]
[1745472852449,1.13026819,1770.9,1770.6,5.64779606]
[1745472852660,1.80795037,1770.9,1770.6,5.64779606]
[1745472853177,0.31636819,1770.9,1770.7,5.64747225]
[1745472853683,5.96290183,1771.0,1770.7,5.64747225]
[1745472853887,5.96290183,1771.0,1770.6,6.44500085]
[1745472854884,5.96290183,1771.0,1770.6,12.09259497]
[1745472855598,5.96290183,1771.0,1770.6,6.44499412]
[1745472855896,5.64653364,1771.0,1770.6,6.44499412]
[1745472856184,5.6477553,1770.7,1770.3,5.64874916]
[1745472856485,6.46139709,1770.7,1770.3,5.64874916]
[1745472856944,6.46139709,1770.7,1770.3,12.03660446]
[1745472857147,0.31667745,1770.8,1770.5,6.38723454]
[1745472857348,0.31667745,1770.8,1770.6,6.46418782]
[1745472857546,6.40453199,1771.0,1770.6,6.46418782]
[1745472858087,12.05131709,1771.0,1770.6,6.46418782]
[1745472858395,0.31670551,1770.9,1770.6,6.46418782]
[1745472858595,0.31670551,1770.9,1770.6,0.8165]
[1745472858804,5.96357806,1770.9,1770.6,0.8165]
[1745472859996,6.40449326,1771.0,1770.6,6.4642599]
[1745472861011,5.64669326,1771.0,1770.6,6.4642599]
[1745472861708,0.3169939,1770.9,1770.6,6.4642599]
[1745472862011,0.3169939,1770.9,1770.6,7.8214415]
[1745472862307,0.3169939,1770.9,1770.6,2.1736816]
[1745472862466,5.96389481,1770.9,1770.6,2.1736816]
[1745472862670,5.64690091,1770.9,1770.6,2.1736816]
[1745472863313,5.64673844,1771.0,1770.6,7.82148241]
[1745472864384,0.31711387,1770.9,1770.6,7.82148241]
[1745472864879,5.96400079,1770.9,1770.6,2.1736816]
[1745472865079,0.31711387,1770.9,1770.6,6.46430201]
[1745472865494,5.64672473,1771.0,1770.6,6.46430201]
[1745472866013,0.31713134,1770.9,1770.6,6.46430201]
[1745472866409,5.64672473,1771.0,1770.6,6.46430201]
[1745472866656,5.64672473,1771.0,1770.5,6.38725919]
[1745472866657,5.64609466,1771.2,1770.8,6.46353358]
[1745472866813,10.48309466,1771.2,1770.8,6.46353358]
[1745472867409,0.31708706,1771.1,1770.8,6.46353358]
[1745472868001,5.64622135,1771.1,1770.8,0.8165]
[1745472868814,16.12926092,1771.2,1770.8,6.46363562]
[1745472869014,16.12925873,1771.2,1770.8,6.46363562]
[1745472869217,10.48309466,1771.2,1770.8,6.46363562]
[1745472869826,0.31694854,1771.1,1770.8,6.46363562]
[1745472870023,0.31694854,1771.1,1770.8,7.74865939]
[1745472870530,0.31694854,1771.1,1770.9,5.64677983]
[1745472870695,0.31694854,1771.1,1771.0,6.46302738]
[1745472870894,0.31694854,1771.3,1771.0,6.46302738]
[1745472872326,5.64568712,1771.3,1771.0,0.8165]
[1745472872525,5.6458921,1771.2,1770.9,0.7678]
[1745472873034,5.6458921,1771.2,1770.9,6.41464188]
[1745472873898,5.6458921,1771.2,1770.9,0.7678]
[1745472874107,5.64635971,1771.1,1770.8,0.7678]
[1745472874326,6.42368979,1771.2,1770.6,0.7678]
[1745472874657,5.64697516,1770.9,1770.6,0.7678]
[1745472876100,5.96376801,1770.9,1770.6,0.7678]
[1745472876442,0.31679285,1770.9,1770.4,0.7678]
[1745472876599,5.64742543,1770.8,1770.4,6.41618092]
[1745472876793,5.64742543,1770.8,1770.4,7.15550948]
[1745472877646,5.64742007,1770.8,1770.4,1.50712856]
[1745472877932,5.64783379,1770.6,1770.2,11.99296584]
[1745472878143,5.64817983,1770.5,1770.2,0.7678]
[1745472878313,5.64783379,1770.6,1770.2,0.7678]
[1745472878715,5.6481579,1770.5,1770.2,0.7678]
[1745472879944,5.64797684,1770.6,1770.2,0.7678]
[1745472880245,6.99017251,1770.7,1770.3,5.64863719]
[1745472880246,5.6476305,1770.7,1770.3,5.64863719]
[1745472880801,5.96429557,1770.7,1770.3,5.64863719]
[1745472881300,5.64796681,1770.6,1770.2,8.09788968]
[1745472881502,6.74215537,1770.7,1770.2,12.80503779]
[1745472881737,6.74215537,1770.7,1770.3,5.64875667]
[1745472881902,5.64780985,1770.6,1770.2,7.15601603]
[1745472882557,6.42531832,1770.7,1770.2,0.7678]
[1745472882704,5.64813048,1770.5,1770.1,5.64937796]
[1745472882904,5.64813048,1770.5,1770.1,5.64921279]
[1745472883533,5.64813048,1770.5,1770.1,11.29840078]
[1745472884043,5.64813048,1770.5,1770.1,5.64918799]
[1745472885644,6.2903584,1770.6,1770.3,0.7678]
[1745472885832,6.2771761,1770.5,1770.3,0.7678]
[1745472887344,6.2771761,1770.5,1770.1,0.7702]
[1745472887554,5.64862933,1770.4,1770.1,0.7702]
[1745472888826,5.64862933,1770.4,1770.0,7.15901356]
[1745472891121,5.64862933,1770.4,1769.9,8.64973088]
[1745472891122,5.64934579,1770.2,1769.8,11.97475284]
[1745472891338,5.64934579,1770.2,1769.8,11.97470974]
[1745472891537,6.43011583,1770.3,1769.8,7.13987398]
[1745472891718,5.64929039,1770.2,1769.8,7.13987398]
[1745472894165,6.43011583,1770.3,1769.9,5.65000197]
[1745472894658,12.07913212,1770.3,1769.9,5.65000197]
[1745472894834,6.43011583,1770.3,1769.9,5.65000197]
[1745472895155,5.64908467,1770.2,1769.9,5.65000197]
[1745472895452,5.64908467,1770.2,1769.8,7.13967994]
[1745472896681,5.64908467,1770.2,1769.8,12.78980447]
[1745472897152,5.64908467,1770.2,1769.9,5.65003112]
[1745472897353,7.31098881,1770.3,1769.9,5.65003112]
[1745472897852,7.31098881,1770.3,1770.0,0.73932856]
[1745472898363,12.96004526,1770.3,1770.0,0.73932856]
[1745472898661,7.31098881,1770.3,1770.0,0.73932856]
[1745472898849,7.31098812,1770.3,1770.0,0.73932856]
[1745472900069,5.64864211,1770.4,1770.0,7.13902433]
[1745472900979,5.64896923,1770.3,1770.0,1.48952856]
[1745472901967,5.64860429,1770.4,1770.0,7.13923758]
[1745472902263,11.29731622,1770.4,1770.0,7.13923758]
[1745472902473,5.64882358,1770.3,1770.0,1.48952856]
[1745472902658,5.64865674,1770.4,1770.0,7.13923294]
[1745472902860,5.64886625,1770.3,1770.0,1.48952856]
[1745472904376,5.64886625,1770.3,1770.0,7.1392405]
[1745472904679,5.64863382,1770.4,1770.0,7.1392405]
[1745472905371,5.64877105,1770.3,1770.0,1.48952856]
[1745472905774,5.64846049,1770.4,1770.0,7.13912264]
[1745472906071,6.29144387,1770.4,1770.0,7.13912264]
[1745472906776,6.60824818,1770.4,1770.0,7.13912264]
[1745472907374,0.31680431,1770.4,1770.1,5.64923483]
[1745472907672,0.31680431,1770.4,1770.3,6.41626009]
[1745472907978,0.31680431,1770.6,1770.3,6.41626009]
[1745472908181,0.31680431,1770.6,1770.4,0.73932856]
[1745472908398,0.31680431,1770.6,1770.4,6.38776413]
[1745472908691,5.96465116,1770.6,1770.4,0.73932856]
[1745472908987,5.64784685,1770.6,1770.4,0.73932856]
[1745472910491,5.64781085,1770.6,1770.4,0.73932856]
[1745472910860,5.64781085,1770.6,1770.3,0.7675]
[1745472911061,5.64815807,1770.5,1770.3,0.7675]
[1745472911259,5.64815807,1770.5,1770.2,0.73932856]
[1745472912090,5.96494806,1770.5,1770.2,0.73932856]
[1745472912285,5.64873331,1770.4,1770.2,0.73932856]
[1745472912477,5.64873331,1770.4,1770.1,0.817]
[1745472912982,5.64879222,1770.3,1770.0,1.60632856]
[1745472913875,6.42702645,1770.4,1770.0,7.25600595]
[1745472915293,12.07573578,1770.4,1770.0,7.25600595]
[1745472915492,6.42702645,1770.4,1770.0,7.25600595]
[1745472915799,5.64876764,1770.3,1770.0,1.60632856]
[1745472917197,5.96570027,1770.3,1770.0,1.60632856]
[1745472917501,11.61472156,1770.3,1770.0,0.867]
[1745472917683,11.29781538,1770.3,1770.0,0.867]
[1745472917887,5.64939833,1770.1,1770.0,0.05]
[1745472918060,5.64917083,1770.2,1770.0,0.05]
[1745472919363,5.64892954,1770.3,1770.0,0.05]
[1745472920162,5.59892954,1770.3,1769.9,6.38934165]
[1745472920365,5.59892954,1770.3,1769.9,7.23748735]
[1745472920561,0.7743,1770.4,1770.1,0.73932856]
[1745472920764,5.64860181,1770.4,1770.1,0.73932856]
[1745472920976,6.42254517,1770.5,1770.1,6.38869399]
[1745472921258,5.64796769,1770.6,1770.3,0.73932856]
[1745472921491,5.64796769,1770.6,1770.3,1.45895382]
[1745472922284,14.28533755,1770.7,1770.2,0.808]
[1745472922285,5.64828234,1770.5,1770.2,0.808]
[1745472922604,5.6483505,1770.5,1770.2,0.808]
[1745472925598,5.64791513,1770.6,1770.3,0.73932856]
[1745472925798,5.96475171,1770.6,1770.3,0.73932856]
[1745472926926,5.96475171,1770.6,1770.2,6.45704018]
[1745472927112,5.96475171,1770.6,1770.3,0.64570402]
[1745472927412,5.64815074,1770.5,1770.3,0.64570402]
[1745472927614,5.64815074,1770.5,1770.2,0.808]
[1745472928510,5.64798,1770.6,1770.2,6.45706278]
[1745472929536,5.64798,1770.6,1770.2,6.45690405]
[1745472929741,5.64798,1770.6,1770.3,5.64875932]
[1745472929943,5.64798,1770.6,1770.2,6.45684981]
[1745472930117,5.64798,1770.6,1770.2,7.74139197]
[1745472930643,5.64798,1770.6,1770.2,13.39025162]
[1745472931333,5.64798,1770.6,1770.2,7.74139197]
[1745472931831,10.48068009,1770.7,1770.3,5.64874547]
[1745472932040,10.48068009,1770.7,1770.2,7.74141058]
[1745472932553,5.64790842,1770.6,1770.2,7.74141058]
[1745472932842,5.64790842,1770.6,1770.2,13.39031079]
[1745472933202,5.64790842,1770.6,1770.2,7.74141058]
[1745472933946,5.96471367,1770.6,1770.2,7.74141058]
[1745472934101,0.31680525,1770.6,1770.2,7.74141058]
[1745472934438,0.31680525,1770.6,1770.3,6.42285331]
[1745472934827,10.48052657,1770.7,1770.3,6.42285331]
[1745472935945,5.6479194,1770.6,1770.3,0.77414106]
[1745472936720,5.9647435,1770.6,1770.3,0.77414106]
[1745472936920,5.9647435,1770.6,1770.2,6.45685341]
[1745472937329,5.64849745,1770.4,1770.0,6.4685233]
[1745472937949,6.45213061,1770.5,1770.1,12.03779789]
[1745472938110,6.45213061,1770.5,1770.1,6.38850244]
[1745472938313,5.64797171,1770.6,1770.2,6.46805092]
[1745472938657,11.28451562,1770.7,1770.3,6.38798618]
[1745472938956,4.833,1770.7,1770.4,6.46735618]
[1745472939313,10.48053155,1770.7,1770.4,0.819]
[1745472941532,4.833,1770.7,1770.4,6.46743782]
[1745472941776,5.64733713,1770.8,1770.5,0.64674378]
[1745472941924,6.45077765,1770.9,1770.5,6.29483681]
[1745472942128,5.64718535,1770.8,1770.5,0.64674378]
[1745472943446,5.96395139,1770.8,1770.5,0.64674378]
[1745472947548,0.31676604,1770.8,1770.6,0.819]
[1745472947753,0.31676604,1770.8,1770.6,7.25209849]
[1745472948251,10.47668972,1771.0,1770.6,1.60431338]
[1745472948252,5.96361246,1770.9,1770.6,1.60431338]
[1745472949154,11.61073935,1770.9,1770.6,0.819]
[1745472949336,5.96361246,1770.9,1770.6,0.819]
[1745472950255,5.9636856,1770.9,1770.6,0.819]
[1745472951154,5.64684642,1770.9,1770.6,0.819]
[1745472952760,5.96368836,1770.9,1770.6,0.819]
[1745472954058,5.64684642,1770.9,1770.6,0.819]
[1745472955922,5.96366645,1770.9,1770.6,0.819]
[1745472956940,5.64684642,1770.9,1770.6,0.819]
[1745472957560,16.12352006,1771.0,1770.6,6.46676065]
[1745472957851,16.12352445,1771.0,1770.6,6.46676065]
[1745472958059,4.83,1771.0,1770.7,0.73932856]
[1745472958263,4.8,1771.1,1770.8,6.43352902]
[1745472959859,4.8,1771.1,1770.8,12.08047555]
[1745472960063,5.64601142,1771.2,1770.8,12.08050732]
[1745472960263,5.64601142,1771.2,1770.8,6.43352902]
[1745472960450,5.64601142,1771.2,1770.8,7.71554733]
[1745472960624,5.9626319,1771.2,1770.8,13.36249129]
[1745472960830,5.9626319,1771.2,1770.8,2.06861831]
[1745472961168,5.9626319,1771.2,1770.8,7.71558161]
[1745472962262,5.64622786,1771.1,1770.8,2.06861831]
[1745472962644,5.9626319,1771.2,1770.8,7.71573153]
[1745472962966,5.9626319,1771.2,1770.9,0.77157315]
[1745472963568,5.9626319,1771.2,1770.9,6.41840629]
[1745472963866,5.9626319,1771.2,1770.9,0.77157315]
[1745472966696,0.31662048,1771.2,1770.9,0.77157315]
[1745472966896,0.31662048,1771.2,1771.0,0.7731]
[1745472967101,0.31662048,1771.2,1771.0,6.41959684]
[1745472967300,0.31662048,1771.2,1771.0,0.7731]
[1745472968999,0.31662048,1771.2,1771.0,6.41957844]
[1745472970494,5.14562048,1771.3,1771.0,6.41957844]
[1745472970696,5.14562048,1771.3,1771.0,7.70013771]
[1745472970891,10.79123802,1771.3,1771.0,2.05365927]
[1745472971805,5.14562048,1771.3,1771.0,1.28055927]
[1745472972018,10.47468394,1771.3,1771.0,1.28055927]
[1745472972316,10.47468394,1771.3,1770.9,7.15903922]
[1745472975282,10.47468394,1771.3,1770.7,5.64730384]
[1745472975283,6.4555922,1771.2,1770.8,8.64697644]
[1745472975481,6.77226249,1771.2,1770.8,8.64697644]
[1745472977842,1.12637029,1771.2,1770.9,5.6468431]
[1745472978125,0.8097,1771.2,1770.9,5.6468431]
[1745472978295,0.8097,1771.2,1771.0,0.56468431]
[1745472978918,10.47468394,1771.3,1771.0,0.56468431]
[1745472979121,10.47468394,1771.3,1770.9,6.4498431]
[1745472979853,0.3167613,1771.2,1770.9,6.4498431]
[1745472981369,10.47468394,1771.3,1770.9,6.4498431]
[1745472983174,0.31683693,1771.2,1770.9,6.4498431]
[1745472983365,0.31683693,1771.2,1771.0,5.64633667]
[1745472983664,0.31683693,1771.2,1771.1,7.7531708]
[1745472983964,0.31683693,1771.5,1771.1,9.95015171]
[1745472984125,0.31683693,1771.5,1771.4,0.73932856]
[1745472984325,0.31683693,1771.5,1771.4,6.3845809]
[1745472984535,0.31683693,1771.5,1771.4,8.39056519]
[1745472984940,3.80469423,1771.7,1771.4,8.39056519]
[1745472985471,3.80469423,1771.7,1771.5,5.64492725]
[1745472985778,3.80469423,1771.7,1771.6,7.18694359]
[1745472986438,3.80469423,1771.7,1771.6,1.54232856]
[1745472987074,3.80469423,1771.7,1771.6,2.26103508]
[1745472987790,3.80469423,1771.7,1771.6,1.45803508]
[1745472987991,5.64399896,1771.8,1771.6,1.45803508]
[1745472988154,5.64399896,1771.8,1771.6,0.73932856]
[1745472988345,10.46983614,1771.9,1771.6,0.73932856]
[1745472988947,5.64409439,1771.8,1771.6,0.73932856]
[1745472989148,5.64383614,1771.9,1771.6,0.73932856]
[1745472989559,5.64406708,1771.8,1771.5,0.803]
[1745472989765,6.45927258,1771.9,1771.5,0.803]
[1745472990186,6.45927258,1771.9,1771.5,6.44793153]
[1745472990574,5.64409487,1771.8,1771.5,0.803]
[1745472990990,6.45927258,1771.9,1771.5,0.803]
[1745472991192,12.1032356,1771.9,1771.5,0.803]
[1745472991486,12.1032356,1771.9,1771.5,1.9420316]
[1745472991694,6.45927258,1771.9,1771.5,7.58691651]
[1745472991866,12.41917683,1771.9,1771.5,1.9420316]
[1745472992192,6.77520912,1771.9,1771.5,7.58692492]
[1745472992393,5.64397901,1771.8,1771.5,1.9420316]
[1745472993592,5.64397901,1771.8,1771.5,1.1390316]
[1745472994300,5.64493367,1771.5,1771.0,6.42309114]
[1745472994528,5.64553129,1771.4,1771.0,6.42322343]
[1745472994668,5.64553129,1771.4,1771.0,0.7767]
[1745472994875,6.4504861,1771.3,1770.8,12.07060691]
[1745472995107,6.76643758,1771.3,1770.8,13.83410046]
[1745472995582,5.64591912,1771.2,1770.8,2.54019355]
[1745472995786,5.64625603,1771.1,1770.8,2.54019355]
[1745472995988,5.64625603,1771.1,1770.8,0.7767]
[1745472996813,5.64609843,1771.2,1770.8,0.7767]
[1745472997813,5.64609843,1771.2,1770.8,6.42381339]
[1745472999425,11.27565761,1771.3,1770.9,0.73932856]
[1745472999574,11.27565761,1771.3,1770.5,8.64809613]
[1745472999575,4.825,1771.3,1771.1,1.51602856]
[1745472999770,4.825,1771.3,1771.1,7.87846737]
[1745473000111,4.825,1771.3,1771.1,13.5242585]
[1745473000287,0.31596162,1771.5,1771.2,5.64573233]
[1745473000688,5.64482297,1771.6,1771.1,13.52424249]
[1745473001000,5.64482297,1771.6,1771.2,6.99829212]
[1745473001375,9.44917229,1771.7,1771.3,6.38466102]
[1745473001574,3.80469423,1771.7,1771.3,12.80669348]
[1745473002384,9.44905505,1771.7,1771.3,7.16136102]
[1745473003029,5.64436082,1771.7,1771.3,7.16136102]
[1745473003215,5.64436082,1771.7,1771.4,0.7161361]
[1745473003518,11.27405757,1771.8,1771.4,6.36137677]
[1745473003681,5.6299,1771.8,1771.5,0.73932856]
[1745473003881,11.27388602,1771.8,1771.5,0.73932856]
[1745473004185,5.64430934,1771.7,1771.3,7.16135635]
[1745473004385,5.64430934,1771.7,1771.4,0.71613564]
[1745473005225,11.27406945,1771.8,1771.4,6.36138462]
[1745473005737,5.64439887,1771.7,1771.4,0.71613564]
[1745473006521,5.6299,1771.8,1771.4,6.36113351]
[1745473006727,4.825,1771.8,1771.5,7.02019683]
[1745473006891,11.27054341,1772.1,1771.7,5.6442906]
[1745473007220,5.64334279,1772.0,1771.7,0.73932856]
[1745473007789,5.9592384,1772.0,1771.7,0.73932856]
[1745473008533,0.31589561,1772.0,1771.9,0.73932856]
[1745473009033,5.95860765,1772.2,1771.9,0.73932856]
[1745473009207,0.31589561,1772.2,1771.9,0.73932856]
[1745473010164,5.64287098,1772.2,1771.9,0.73932856]
[1745473011329,11.28586189,1772.2,1771.8,5.64371874]
[1745473011637,11.28587675,1772.2,1771.8,6.28202347]
[1745473011838,5.64287098,1772.2,1771.8,6.28202347]
[1745473012361,11.60161984,1772.2,1771.8,6.28202347]
[1745473012559,5.64337077,1772.0,1771.6,0.7694]
[1745473012859,5.64337077,1772.0,1771.6,6.41389873]
[1745473013064,6.46300341,1772.1,1771.6,6.41376712]
[1745473013280,9.44692086,1772.4,1772.0,5.64323315]
[1745473013447,3.80469423,1772.4,1772.1,6.94663131]
[1745473013623,9.44683,1772.4,1772.1,2.07425188]
[1745473013827,9.44683,1772.4,1772.0,5.64320705]
[1745473014261,5.64213577,1772.4,1772.0,5.64320705]
[1745473014951,5.95775225,1772.4,1772.0,5.64320705]
[1745473015272,5.64213577,1772.4,1772.0,5.64320705]
[1745473015470,5.64240795,1772.3,1771.9,7.15337109]
[1745473015672,5.64293232,1772.2,1771.9,0.7706]
[1745473015979,6.46234344,1772.3,1771.9,6.41423055]
[1745473017061,6.46234344,1772.3,1771.9,0.7706]
[1745473017062,5.64282281,1772.2,1771.9,0.7706]
[1745473017267,5.642841,1772.2,1771.8,6.38305776]
[1745473017498,5.642841,1772.2,1771.8,7.66284154]
[1745473018877,5.642841,1772.2,1771.8,2.01911234]
[1745473019067,5.64305647,1772.1,1771.7,0.7706]
[1745473019268,5.64305647,1772.1,1771.7,6.41486937]
[1745473019604,5.64270398,1772.2,1771.7,0.7706]
[1745473019768,5.64320913,1772.1,1771.7,6.4148953]
[1745473019968,11.28651136,1772.1,1771.7,6.4148953]
[1745473020197,11.28651136,1772.1,1771.6,9.38374514]
[1745473020198,6.46315303,1772.0,1771.6,6.38383449]
[1745473020581,5.64366022,1771.9,1771.6,6.38383449]
[1745473020904,5.64366022,1771.9,1771.6,0.73932856]
[1745473021103,6.46328616,1772.0,1771.5,0.7706]
[1745473021273,5.64381263,1771.9,1771.5,6.41548263]
[1745473021478,5.64381263,1771.9,1771.5,7.69547004]
[1745473022897,5.64381263,1771.9,1771.5,7.69538132]
[1745473023207,5.64381263,1771.9,1771.5,7.69534357]
[1745473023570,5.64381263,1771.9,1771.6,0.73932856]
[1745473027634,6.46327154,1772.0,1771.6,6.38394263]
[1745473027811,5.64347154,1772.0,1771.6,6.38394263]
[1745473028359,5.64347154,1772.0,1771.7,0.8172]